fUSD/lending_fUSD_20250716
["ID","MTS","AMOUNT","RATE_DAILY","PERIOD"]
[372520329,1752669069508,-279.38321185,0.00022054,2]
[372520330,1752669069518,-462.76437137,0.00022054,2]
[372520331,1752669069529,-460.0,0.00022054,2]
[372520332,1752669069540,-2741.45,0.00022054,2]
[372520333,1752669069550,-229.71455173,0.00022054,2]
[372520334,1752669069561,-683.31,0.00022054,2]
[372520335,1752669069571,-460.0,0.00022054,2]
[372520336,1752669069582,-460.0,0.00022054,2]
[372520337,1752669069592,-460.0,0.00022054,2]
[372520338,1752669069603,-460.0,0.00022054,2]
[372520339,1752669069613,-1176.36,0.00022054,2]
[372520340,1752669069625,-460.0,0.00022054,2]
[372520341,1752669069635,-538.1,0.00022054,2]
[372520342,1752669069646,-495.12,0.00022054,2]
[372520343,1752669069657,-460.0,0.00022054,2]
[372520344,1752669069668,-460.0,0.00022054,2]
[372520345,1752669069681,-460.0,0.00022054,2]
[372520346,1752669069692,-1416.47,0.00022054,2]
[372520347,1752669069703,-1163.47,0.00022054,2]
[372520348,1752669069713,-460.0,0.00022054,2]
[372520349,1752669069727,-460.0,0.00022054,2]
[372520350,1752669069737,-484.43,0.00022054,2]
[372520351,1752669069747,-460.0,0.00022054,2]
[372520352,1752669069758,-460.0,0.00022054,2]
[372520353,1752669069769,-590.3674046,0.00022054,2]
[372520354,1752669069779,-460.0,0.00022054,2]
[372520355,1752669069790,-460.0,0.00022054,2]
[372520356,1752669069801,-460.0,0.00022054,2]
[372520357,1752669070708,-460.0,0.00022054,2]
[372520358,1752669070831,-213.9639687,0.00022054,2]
[372520359,1752669070866,-500.0,0.00022054,2]
[372520360,1752669070902,-514.2,0.00022054,2]
[372520361,1752669070926,-701.68,0.00022054,2]
[372520362,1752669070936,-1212.73,0.00022054,2]
[372520363,1752669070947,-460.0,0.00022054,2]
[372520364,1752669070956,-995.03,0.00022054,2]
[372520365,1752669070970,-1197.96,0.00022054,2]
[372520366,1752669070980,-500.0,0.00022054,5]
[372520367,1752669070990,-460.0,0.00022054,2]
[372520368,1752669071000,-460.0,0.00022054,2]
[372520369,1752669071010,-460.0,0.00022054,2]
[372520370,1752669071019,-460.0,0.00022054,2]
[372520371,1752669071031,-460.0,0.00022054,2]
[372520372,1752669071041,-460.0,0.00022054,2]
[372520373,1752669071051,-1163.19,0.00022054,2]
[372520374,1752669071061,-650.11,0.00022054,2]
[372520375,1752669071071,-460.0,0.00022054,2]
[372520376,1752669071080,-593.87,0.00022054,2]
[372520377,1752669071090,-460.0,0.00022054,2]
[372520378,1752669071100,-460.0,0.00022054,2]
[372520379,1752669071110,-908.01,0.00022054,2]
[372520380,1752669071120,-578.62,0.00022054,2]
[372520381,1752669071130,-460.0,0.00022054,2]
[372520382,1752669071139,-1135.45,0.00022054,2]
[372520383,1752669071149,-460.0,0.00022054,2]
[372520384,1752669071159,-460.0,0.00022054,2]
[372520385,1752669071169,-460.0,0.00022054,2]
[372520386,1752669071178,-576.52495995,0.00022054,2]
[372520387,1752669071188,-1469.34,0.00022054,2]
[372520388,1752669071198,-460.0,0.00022054,2]
[372520389,1752669071210,-460.0,0.00022054,2]
[372520390,1752669071224,-460.0,0.00022054,2]
[372520391,1752669071234,-403.01,0.00022054,2]
[372520392,1752669071244,-2710.69,0.00022054,2]
[372520393,1752669071255,-460.0,0.00022054,2]
[372520394,1752669071265,-460.0,0.00022054,2]
[372520395,1752669071275,-810.47,0.00022054,2]
[372520396,1752669071287,-460.0,0.00022054,2]
[372520397,1752669071298,-812.29,0.00022054,2]
[372520398,1752669071308,-460.0,0.00022054,2]
[372520399,1752669071318,-460.0,0.00022054,2]
[372520400,1752669071328,-460.0,0.00022054,2]
[372520401,1752669071338,-460.0,0.00022054,2]
[372520402,1752669071347,-460.0,0.00022054,2]
[372520403,1752669071357,-460.0,0.00022054,2]
[372520404,1752669071367,-935.92,0.00022054,2]
[372520405,1752669071377,-1708.86,0.00022054,2]
[372520406,1752669071386,-460.0,0.00022054,2]
[372520407,1752669071396,-978.25,0.00022054,2]
[372520408,1752669071406,-634.51,0.00022054,2]
[372520409,1752669071416,-497.88679973,0.00022054,2]
[372520410,1752669071425,-513.45,0.00022054,2]
[372520411,1752669071435,-460.0,0.00022054,2]
[372520412,1752669071445,-460.0,0.00022054,2]
[372520413,1752669071455,-460.0,0.00022054,2]
[372520414,1752669071467,-460.0,0.00022054,2]
[372520415,1752669071478,-832.92,0.00022054,2]
[372520416,1752669071487,-460.0,0.00022054,2]
[372520417,1752669071497,-936.58,0.00022054,2]
[372520418,1752669071506,-460.0,0.00022054,2]
[372520419,1752669071517,-460.0,0.00022054,2]
[372520420,1752669071527,-460.0,0.00022054,2]
[372520421,1752669071537,-460.0,0.00022054,2]
[372520422,1752669071546,-460.0,0.00022054,2]
[372520423,1752669071556,-460.0,0.00022054,2]
[372520424,1752669071565,-591.29,0.00022054,2]
[372520425,1752669071575,-734.17,0.00022054,2]
[372520426,1752669071585,-1038.98,0.00022054,2]
[372520427,1752669071594,-460.0,0.00022054,2]
[372520428,1752669071604,-460.0,0.00022054,2]
[372520429,1752669071613,-460.0,0.00022054,2]
[372520430,1752669071623,-460.0,0.00022054,2]
[372520431,1752669071633,-460.0,0.00022054,2]
[372520432,1752669071643,-460.0,0.00022054,2]
[372520433,1752669071652,-460.0,0.00022054,2]
[372520434,1752669071662,-490.67,0.00022054,2]
[372520435,1752669071672,-460.0,0.00022054,2]
[372520436,1752669071682,-1227.48,0.00022054,2]
[372520437,1752669071692,-460.0,0.00022054,2]
[372520438,1752669071702,-460.0,0.00022054,2]
[372520439,1752669071712,-460.0,0.00022054,2]
[372520440,1752669071728,-460.0,0.00022054,2]
[372520441,1752669071739,-493.78,0.00022054,2]
[372520442,1752669071749,-460.0,0.00022054,2]
[372520443,1752669071759,-1159.02,0.00022054,2]
[372520444,1752669071769,-1348.28,0.00022054,2]
[372520445,1752669071779,-460.0,0.00022054,2]
[372520446,1752669071789,-460.0,0.00022054,2]
[372520447,1752669071799,-460.0,0.00022054,2]
[372520448,1752669071809,-460.0,0.00022054,2]
[372520449,1752669071819,-920.57,0.00022054,2]
[372520450,1752669071828,-719.56,0.00022054,2]
[372520451,1752669071838,-460.0,0.00022054,2]
[372520452,1752669071847,-533.03,0.00022054,2]
[372520453,1752669071857,-460.0,0.00022054,2]
[372520454,1752669071868,-460.0,0.00022054,2]
[372520455,1752669071877,-464.96,0.00022054,2]
[372520456,1752669071887,-708.05,0.00022054,2]
[372520457,1752669071897,-460.0,0.00022054,2]
[372520458,1752669071907,-1406.23,0.00022054,2]
[372520459,1752669071917,-463.02209047,0.00022054,2]
[372520460,1752669071926,-460.0,0.00022054,2]
[372520461,1752669071936,-460.0,0.00022054,2]
[372520462,1752669071947,-460.0,0.00022054,2]
[372520463,1752669071958,-460.0,0.00022054,2]
[372520464,1752669071971,-1117.02,0.00022054,2]
[372520465,1752669071980,-460.0,0.00022054,2]
[372520466,1752669071990,-460.0,0.00022054,2]
[372520467,1752669072000,-542.35,0.00022054,2]
[372520468,1752669072010,-460.0,0.00022054,2]
[372520469,1752669072020,-2152.87,0.00022054,2]
[372520470,1752669072030,-460.0,0.00022054,2]
[372520471,1752669072040,-460.0,0.00022054,2]
[372520472,1752669072050,-460.0,0.00022054,2]
[372520473,1752669072060,-460.0,0.00022054,2]
[372520474,1752669072070,-460.0,0.00022054,2]
[372520475,1752669072080,-1598.37,0.00022054,2]
[372520476,1752669072090,-212.50236537,0.00022054,2]
[372520477,1752669072099,-460.0,0.00022054,2]
[372520478,1752669072109,-533.600887,0.00022054,2]
[372520479,1752669072119,-460.0,0.00022054,2]
[372520480,1752669072128,-969.92,0.00022054,2]
[372520481,1752669072138,-790.01,0.00022054,2]
[372520482,1752669072147,-460.0,0.00022054,2]
[372520483,1752669072157,-460.0,0.00022054,2]
[372520484,1752669072168,-460.0,0.00022054,2]
[372520485,1752669072177,-3084.04,0.00022054,2]
[372520486,1752669072187,-460.0,0.00022054,2]
[372520487,1752669072197,-1018.55,0.00022054,2]
[372520488,1752669072209,-460.0,0.00022054,2]
[372520489,1752669072223,-460.0,0.00022054,2]
[372520490,1752669072232,-606.56,0.00022054,2]
[372520491,1752669072243,-460.0,0.00022054,2]
[372520492,1752669072253,-460.0,0.00022054,2]
[372520493,1752669072263,-1286.86,0.00022054,2]
[372520494,1752669072273,-460.0,0.00022054,2]
[372520495,1752669072284,-552.3,0.00022054,2]
[372520496,1752669072295,-1001.88,0.00022054,2]
[372520497,1752669072305,-1306.89,0.00022054,2]
[372520498,1752669072315,-460.0,0.00022054,2]
[372520499,1752669072325,-460.0,0.00022054,2]
[372520500,1752669072335,-460.0,0.00022054,2]
[372520501,1752669072344,-500.0,0.00022054,2]
[372520502,1752669072354,-2815.65,0.00022054,2]
[372520503,1752669072364,-558.0,0.00022054,2]
[372520504,1752669072374,-604.31,0.00022054,2]
[372520505,1752669072383,-529.44,0.00022054,2]
[372520506,1752669072393,-460.0,0.00022054,2]
[372520507,1752669072403,-460.0,0.00022054,2]
[372520508,1752669072414,-610.04,0.00022054,2]
[372520509,1752669072424,-460.0,0.00022054,2]
[372520510,1752669072435,-460.0,0.00022054,2]
[372520511,1752669072446,-460.0,0.00022054,2]
[372520512,1752669072456,-460.0,0.00022054,2]
[372520513,1752669072468,-460.0,0.00022054,2]
[372520514,1752669072477,-500.0,0.00022054,2]
[372520515,1752669072487,-460.0,0.00022054,2]
[372520516,1752669072497,-460.0,0.00022054,2]
[372520517,1752669072507,-460.0,0.00022054,2]
[372520518,1752669072517,-460.0,0.00022054,2]
[372520519,1752669072526,-574.67,0.00022054,2]
[372520520,1752669072536,-380.96012037,0.00022054,2]
[372520521,1752669072546,-1466.12,0.00022054,2]
[372520522,1752669072555,-460.0,0.00022054,2]
[372520523,1752669072565,-460.0,0.00022054,2]
[372520524,1752669072575,-599.62,0.00022054,2]
[372520525,1752669072584,-1457.82,0.00022054,2]
[372520526,1752669072595,-460.0,0.00022054,2]
[372520527,1752669072604,-460.0,0.00022054,2]
[372520528,1752669072614,-460.0,0.00022054,2]
[372520529,1752669072625,-460.0,0.00022054,2]
[372520530,1752669072634,-460.0,0.00022054,2]
[372520531,1752669072644,-460.0,0.00022054,2]
[372520532,1752669072654,-498.95,0.00022054,2]
[372520533,1752669072663,-259.26493611,0.00022054,2]
[372520534,1752669072672,-4349.71,0.00022054,2]
[372520535,1752669072681,-724.0,0.00022054,2]
[372520536,1752669072692,-512.66,0.00022054,2]
[372520537,1752669072702,-460.0,0.00022054,2]
[372520538,1752669072712,-460.0,0.00022054,2]
[372520539,1752669072725,-460.0,0.00022054,2]
[372520540,1752669072735,-460.0,0.00022054,2]
[372520541,1752669072745,-460.0,0.00022054,2]
[372520542,1752669072754,-460.0,0.00022054,2]
[372520543,1752669072764,-547.74,0.00022054,2]
[372520544,1752669072774,-460.0,0.00022054,2]
[372520545,1752669072784,-460.0,0.00022054,2]
[372520546,1752669072794,-460.0,0.00022054,2]
[372520547,1752669072804,-460.0,0.00022054,2]
[372520548,1752669072814,-460.0,0.00022054,2]
[372520549,1752669072824,-974.71,0.00022054,2]
[372520550,1752669072834,-460.0,0.00022054,2]
[372520551,1752669072844,-460.0,0.00022054,2]
[372520552,1752669072854,-681.19,0.00022054,2]
[372520553,1752669072864,-460.0,0.00022054,2]
[372520554,1752669072874,-526.09,0.00022054,2]
[372520555,1752669072884,-460.0,0.00022054,2]
[372520556,1752669072894,-678.35,0.00022054,2]
[372520557,1752669072904,-1021.63,0.00022054,2]
[372520558,1752669072914,-1029.29,0.00022054,2]
[372520559,1752669072923,-460.0,0.00022054,2]
[372520560,1752669072932,-1562.72,0.00022054,2]
[372520561,1752669072942,-463.01975291,0.00022054,2]
[372520562,1752669072952,-460.0,0.00022054,2]
[372520563,1752669072962,-1020.33,0.00022054,2]
[372520564,1752669072974,-525.68,0.00022054,2]
[372520565,1752669072984,-460.0,0.00022054,2]
[372520566,1752669072994,-460.0,0.00022054,2]
[372520567,1752669073004,-974.9,0.00022054,2]
[372520568,1752669073013,-500.0,0.00022054,2]
[372520569,1752669073024,-1457.11,0.00022054,2]
[372520570,1752669073033,-460.0,0.00022054,2]
[372520571,1752669073043,-460.0,0.00022054,2]
[372520572,1752669073052,-721.39,0.00022054,2]
[372520573,1752669073062,-482.25,0.00022054,2]
[372520574,1752669073072,-460.0,0.00022054,2]
[372520575,1752669073081,-460.0,0.00022054,2]
[372520576,1752669073092,-488.24,0.00022054,2]
[372520577,1752669073103,-887.99,0.00022054,2]
[372520578,1752669073113,-471.22,0.00022054,2]
[372520579,1752669073123,-460.0,0.00022054,2]
[372520580,1752669073133,-460.0,0.00022054,2]
[372520581,1752669073143,-746.4,0.00022054,2]
[372520582,1752669073152,-460.0,0.00022054,2]
[372520583,1752669073162,-950.17,0.00022054,2]
[372520584,1752669073172,-476.93,0.00022054,2]
[372520585,1752669073182,-578.14320143,0.00022054,2]
[372520586,1752669073192,-661.52,0.00022054,2]
[372520587,1752669073203,-976.89,0.00022054,2]
[372520588,1752669073219,-910.12,0.00022054,2]
[372520589,1752669073230,-765.43,0.00022054,2]
[372520590,1752669073240,-460.0,0.00022054,2]
[372520591,1752669073251,-460.0,0.00022054,2]
[372520592,1752669073392,-460.0,0.00022054,2]
[372520593,1752669073404,-478.25,0.00022054,2]
[372520594,1752669073414,-460.0,0.00022054,2]
[372520595,1752669073425,-460.0,0.00022054,2]
[372520596,1752669073436,-1055.73,0.00022054,2]
[372520597,1752669073446,-559.57,0.00022054,2]
[372520598,1752669073456,-460.0,0.00022054,2]
[372520599,1752669073468,-2568.31,0.00022054,2]
[372520600,1752669073478,-500.0,0.00022054,2]
[372520601,1752669073488,-589.89,0.00022054,2]
[372520602,1752669073498,-517.89303718,0.00022054,2]
[372520603,1752669073507,-460.0,0.00022054,2]
[372520604,1752669073517,-544.46,0.00022054,2]
[372520605,1752669073526,-460.0,0.00022054,2]
[372520606,1752669073535,-460.0,0.00022054,2]
[372520607,1752669073545,-460.0,0.00022054,2]
[372520608,1752669073554,-2312.45,0.00022054,2]
[372520609,1752669073564,-588.06,0.00022054,2]
[372520610,1752669073574,-460.0,0.00022054,2]
[372520611,1752669073583,-935.74,0.00022054,2]
[372520612,1752669073593,-460.0,0.00022054,2]
[372520613,1752669073603,-460.0,0.00022054,2]
[372520614,1752669073613,-683.33,0.00022054,2]
[372520615,1752669073623,-705.58,0.00022054,2]
[372520616,1752669073633,-657.65,0.00022054,2]
[372520617,1752669073642,-460.0,0.00022054,2]
[372520618,1752669073653,-460.0,0.00022054,2]
[372520619,1752669073663,-2434.49,0.00022054,2]
[372520620,1752669073675,-460.0,0.00022054,2]
[372520621,1752669073685,-460.0,0.00022054,2]
[372520622,1752669073695,-400.4927758,0.00022054,2]
[372520623,1752669073705,-460.0,0.00022054,2]
[372520624,1752669073714,-460.0,0.00022054,2]
[372520625,1752669073725,-460.0,0.00022054,2]
[372520626,1752669073740,-460.0,0.00022054,2]
[372520627,1752669073751,-460.0,0.00022054,2]
[372520628,1752669073763,-460.0,0.00022054,2]
[372520629,1752669073774,-460.0,0.00022054,2]
[372520630,1752669073784,-735.8,0.00022054,2]
[372520631,1752669073793,-460.0,0.00022054,2]
[372520632,1752669073803,-460.0,0.00022054,2]
[372520633,1752669073814,-500.0,0.00022054,2]
[372520634,1752669073824,-1781.87,0.00022054,2]
[372520635,1752669073834,-460.0,0.00022054,2]
[372520636,1752669073844,-461.45,0.00022054,2]
[372520637,1752669073853,-541.93693452,0.00022054,2]
[372520638,1752669073863,-460.0,0.00022054,2]
[372520639,1752669073874,-853.98,0.00022054,2]
[372520640,1752669073888,-778.28,0.00022054,2]
[372520641,1752669073906,-460.0,0.00022054,2]
[372520642,1752669073916,-567.83507594,0.00022054,2]
[372520643,1752669073930,-460.0,0.00022054,2]
[372520644,1752669073948,-11042.15,0.00022054,2]
[372520645,1752669073958,-948.12,0.00022054,2]
[372520646,1752669073969,-460.0,0.00022054,2]
[372520647,1752669073979,-460.0,0.00022054,2]
[372520648,1752669073989,-460.0,0.00022054,2]
[372520649,1752669073998,-699.07,0.00022054,2]
[372520650,1752669074008,-2673.89,0.00022054,2]
[372520651,1752669074018,-730.66,0.00022054,2]
[372520652,1752669074028,-850.78,0.00022054,2]
[372520653,1752669074038,-508.69,0.00022054,2]
[372520654,1752669074047,-2461.48,0.00022054,2]
[372520655,1752669074058,-2134.92,0.00022054,2]
[372520656,1752669074068,-460.0,0.00022054,2]
[372520657,1752669074078,-1401.13,0.00022054,2]
[372520658,1752669074088,-707.86,0.00022054,2]
[372520659,1752669074098,-513.5,0.00022054,2]
[372520660,1752669074107,-582.82,0.00022054,2]
[372520661,1752669074117,-460.0,0.00022054,2]
[372520662,1752669074126,-2916.59,0.00022054,2]
[372520663,1752669074136,-460.0,0.00022054,2]
[372520664,1752669074146,-649.78,0.00022054,2]
[372520665,1752669074156,-1829.24,0.00022054,2]
[372520666,1752669074165,-721.74,0.00022054,2]
[372520667,1752669074175,-460.0,0.00022054,2]
[372520668,1752669074184,-460.0,0.00022054,2]
[372520669,1752669074194,-551.45723043,0.00022054,2]
[372520670,1752669074206,-1463.77,0.00022054,2]
[372520671,1752669074222,-5352.93,0.00022054,2]
[372520672,1752669074232,-1437.23,0.00022054,2]
[372520673,1752669074243,-460.0,0.00022054,2]
[372520674,1752669074253,-1413.51,0.00022054,2]
[372520675,1752669074263,-460.0,0.00022054,2]
[372520676,1752669074272,-9157.14,0.00022054,2]
[372520677,1752669074283,-711.53,0.00022054,2]
[372520678,1752669074293,-460.0,0.00022054,2]
[372520679,1752669074303,-4745.61,0.00022054,2]
[372520680,1752669074313,-546.85,0.00022054,2]
[372520681,1752669074323,-498.12,0.00022054,2]
[372520682,1752669074333,-460.0,0.00022054,2]
[372520683,1752669074343,-488.38847333,0.00022054,2]
[372520684,1752669074353,-460.0,0.00022054,2]
[372520685,1752669074363,-460.0,0.00022054,2]
[372520686,1752669074374,-460.0,0.00022054,2]
[372520687,1752669074384,-460.0,0.00022054,2]
[372520688,1752669074394,-2617.53,0.00022054,2]
[372520689,1752669074404,-2662.58,0.00022054,2]
[372520690,1752669074413,-460.0,0.00022054,2]
[372520691,1752669074423,-460.0,0.00022054,2]
[372520692,1752669074433,-678.94,0.00022054,2]
[372520693,1752669074443,-5755.67,0.00022054,2]
[372520694,1752669074453,-582.15,0.00022054,2]
[372520695,1752669074463,-1926.02,0.00022054,2]
[372520696,1752669074476,-460.0,0.00022054,2]
[372520697,1752669074486,-460.0,0.00022054,2]
[372520698,1752669074496,-460.0,0.00022054,2]
[372520699,1752669074507,-460.0,0.00022054,2]
[372520700,1752669074519,-460.0,0.00022054,2]
[372520701,1752669074529,-460.0,0.00022054,2]
[372520702,1752669074539,-460.0,0.00022054,2]
[372520703,1752669074549,-490.59903826,0.00022054,2]
[372520704,1752669074558,-1167.72,0.00022054,2]
[372520705,1752669074568,-732.22,0.00022054,2]
[372520706,1752669074578,-460.0,0.00022054,2]
[372520707,1752669074588,-704.56,0.00022054,2]
[372520708,1752669074597,-460.0,0.00022054,2]
[372520709,1752669074607,-1494.66,0.00022054,2]
[372520710,1752669074616,-929.27,0.00022054,2]
[372520711,1752669074626,-460.0,0.00022054,2]
[372520712,1752669074635,-1183.1,0.00022054,2]
[372520713,1752669074645,-1525.61,0.00022054,2]
[372520714,1752669074659,-10221.79,0.00022054,2]
[372520715,1752669074671,-1026.83,0.00022054,2]
[372520716,1752669074681,-460.0,0.00022054,2]
[372520717,1752669074691,-460.0,0.00022054,2]
[372520718,1752669074701,-2774.58,0.00022054,2]
[372520719,1752669074711,-460.0,0.00022054,2]
[372520720,1752669074723,-1029.05,0.00022054,2]
[372520721,1752669074733,-4578.26,0.00022054,2]
[372520722,1752669074743,-1034.96,0.00022054,2]
[372520723,1752669074753,-873.11,0.00022054,2]
[372520724,1752669074763,-460.0,0.00022054,2]
[372520725,1752669074773,-460.0,0.00022054,2]
[372520726,1752669074783,-460.0,0.00022054,2]
[372520727,1752669074792,-684.26,0.00022054,2]
[372520728,1752669074802,-460.0,0.00022054,2]
[372520729,1752669074813,-2986.99,0.00022054,2]
[372520730,1752669074822,-2573.02,0.00022054,2]
[372520731,1752669074833,-460.0,0.00022054,2]
[372520733,1752669074843,-460.0,0.00022054,2]
[372520734,1752669074853,-1824.18,0.00022054,2]
[372520735,1752669074863,-460.0,0.00022054,2]
[372520736,1752669074873,-460.0,0.00022054,2]
[372520737,1752669074883,-573.31,0.00022054,2]
[372520738,1752669074892,-1197.4,0.00022054,2]
[372520739,1752669074903,-595.88,0.00022054,2]
[372520740,1752669074913,-460.0,0.00022054,2]
[372520741,1752669074923,-2561.48,0.00022054,2]
[372520742,1752669074932,-460.0,0.00022054,2]
[372520743,1752669074942,-432.64213516,0.00022054,2]
[372520744,1752669074952,-6654.32,0.00022054,2]
[372520745,1752669074962,-4323.38,0.00022054,2]
[372520746,1752669074973,-460.0,0.00022054,2]
[372520747,1752669074983,-500.0,0.00022054,2]
[372520748,1752669074992,-460.0,0.00022054,2]
[372520749,1752669075003,-1827.79,0.00022054,2]
[372520750,1752669075013,-701.55,0.00022054,2]
[372520751,1752669075023,-3140.05,0.00022054,2]
[372520752,1752669075033,-460.0,0.00022054,2]
[372520753,1752669075042,-623.79,0.00022054,2]
[372520754,1752669075052,-460.0,0.00022054,2]
[372520755,1752669075062,-2320.72,0.00022054,2]
[372520756,1752669075072,-460.0,0.00022054,2]
[372520757,1752669075082,-460.0,0.00022054,2]
[372520758,1752669075093,-1221.52,0.00022054,2]
[372520759,1752669075103,-460.0,0.00022054,2]
[372520760,1752669075113,-460.0,0.00022054,2]
[372520761,1752669075123,-460.0,0.00022054,2]
[372520762,1752669075133,-1719.48,0.00022054,2]
[372520763,1752669075143,-460.0,0.00022054,2]
[372520764,1752669075152,-460.0,0.00022054,2]
[372520765,1752669075162,-460.0,0.00022054,2]
[372520766,1752669075171,-818.12,0.00022054,2]
[372520767,1752669075182,-460.0,0.00022054,2]
[372520768,1752669075192,-19766.43,0.00022054,2]
[372520769,1752669075204,-1155.46,0.00022054,2]
[372520770,1752669075221,-1046.91,0.00022054,2]
[372520771,1752669075232,-3585.13,0.00022054,2]
[372520772,1752669075244,-700.68,0.00022054,2]
[372520773,1752669075254,-460.0,0.00022054,2]
[372520774,1752669075264,-2220.28,0.00022054,2]
[372520775,1752669075276,-460.0,0.00022054,2]
[372520776,1752669075289,-460.0,0.00022054,2]
[372520777,1752669075300,-460.0,0.00022054,2]
[372520778,1752669075310,-1140.9,0.00022054,2]
[372520779,1752669075321,-1520.58,0.00022054,2]
[372520780,1752669075331,-3702.03,0.00022054,2]
[372520781,1752669075341,-460.0,0.00022054,2]
[372520782,1752669075351,-13045.73,0.00022054,2]
[372520783,1752669075361,-1070.81,0.00022054,2]
[372520784,1752669075371,-1569.38,0.00022054,2]
[372520785,1752669075381,-534.9524165,0.00022054,2]
[372520786,1752669075401,-460.0,0.00022054,2]
[372520787,1752669075411,-460.0,0.00022054,2]
[372520788,1752669075422,-747.54,0.00022054,2]
[372520789,1752669075432,-460.0,0.00022054,2]
[372520790,1752669075442,-1706.59,0.00022054,2]
[372520791,1752669075452,-460.0,0.00022054,2]
[372520792,1752669075462,-460.0,0.00022054,2]
[372520793,1752669075475,-625.97,0.00022054,2]
[372520794,1752669075485,-1551.2,0.00022054,2]
[372520795,1752669075496,-460.0,0.00022054,2]
[372520796,1752669075507,-460.0,0.00022054,2]
[372520797,1752669075518,-876.1,0.00022054,2]
[372520798,1752669075529,-460.0,0.00022054,2]
[372520799,1752669075539,-460.0,0.00022054,2]
[372520800,1752669075549,-468.6,0.00022054,2]
[372520801,1752669075560,-5880.43,0.00022054,2]
[372520802,1752669075570,-2015.2,0.00022054,2]
[372520803,1752669075580,-460.0,0.00022054,2]
[372520804,1752669075591,-460.0,0.00022054,2]
[372520805,1752669075601,-793.54,0.00022054,2]
[372520806,1752669075611,-460.0,0.00022054,2]
[372520807,1752669075621,-1535.35,0.00022054,2]
[372520808,1752669075632,-460.0,0.00022054,2]
[372520809,1752669075642,-1371.09,0.00022054,2]
[372520810,1752669075652,-460.0,0.00022054,2]
[372520811,1752669075662,-2675.37,0.00022054,2]
[372520812,1752669075672,-618.25,0.00022054,2]
[372520813,1752669075683,-1861.9,0.00022054,2]
[372520814,1752669075693,-4025.59,0.00022054,2]
[372520815,1752669075703,-1899.48,0.00022054,2]
[372520816,1752669075713,-2836.67,0.00022054,2]
[372520817,1752669075726,-2395.57,0.00022054,2]
[372520818,1752669075736,-1265.83,0.00022054,2]
[372520819,1752669075747,-1915.28,0.00022054,2]
[372520820,1752669075757,-460.0,0.00022054,2]
[372520821,1752669075767,-1053.33,0.00022054,2]
[372520822,1752669075778,-483.73,0.00022054,2]
[372520823,1752669075788,-1317.98,0.00022054,2]
[372520824,1752669075798,-460.0,0.00022054,2]
[372520825,1752669075808,-460.0,0.00022054,2]
[372520826,1752669075818,-1384.37,0.00022054,2]
[372520827,1752669075828,-3053.21,0.00022054,2]
[372520828,1752669075842,-500.0,0.00022054,2]
[372520829,1752669075852,-2023.54,0.00022054,2]